OrganisationNameLabel,OrganisationURI,EffectiveDate,Directorate/ServiceWhereExpenditureIncurred,ServiceCategoryLabel,ServiceCategoryURI,Supplier,SupplierRegisteredCompany Number,PaymentDate,TransactionNumber,NetAmount,IrrecoverableVAT,PurposeOfSpend,ProcurementClassification:ProclassLabel,ProcrementClassification:ProClassCode
South Lakeland District Council,http://opendatacommunities.org/id/district-council/south-lakeland,31/05/2023,Case Management People,Housing Services,http://opendatacommunities.org/def/concept/finance/sercop/objective/108,SHELTER,,29/03/2023,188743,80,0,Welfare Benefits Training,201700,Financial Services Grants
South Lakeland District Council,http://opendatacommunities.org/id/district-council/south-lakeland,31/05/2023,Support Services,Central Services,http://opendatacommunities.org/def/concept/finance/sercop/objective/102,Inspira Cumbria Ltd,,04/04/2023,189008,972,0,Lunches re pre-employment courses,291400,Arts & Leisure Services Sport & Fitness
South Lakeland District Council,http://opendatacommunities.org/id/district-council/south-lakeland,31/05/2023,Case Management Account Mgmt,Central Services,http://opendatacommunities.org/def/concept/finance/sercop/objective/102,ROYAL MAIL GROUP PLC,,04/04/2023,189043,1138.61,0,2022-23 Royal Mail Postal Charges a/c,301200,Mail Services� Postage
South Lakeland District Council,http://opendatacommunities.org/id/district-council/south-lakeland,31/05/2023,Human Resources,Central Services,http://opendatacommunities.org/def/concept/finance/sercop/objective/102,Choose Occupational Health,7365943,04/04/2023,189048,221.25,0,6x Physio Session MH,191800,Facilities Public Relations & Image
South Lakeland District Council,http://opendatacommunities.org/id/district-council/south-lakeland,31/05/2023,Human Resources,Central Services,http://opendatacommunities.org/def/concept/finance/sercop/objective/102,Choose Occupational Health,7365943,04/04/2023,189048,361.25,0,6x Physio Session MH,191800,Facilities Public Relations & Image
South Lakeland District Council,http://opendatacommunities.org/id/district-council/south-lakeland,31/05/2023,Human Resources,Cultural Environmental Regulatory & Planning Services,http://opendatacommunities.org/def/concept/finance/sercop/objective/104,Choose Occupational Health,7365943,04/04/2023,189048,455,0,6x Physio Session MH,191800,Facilities Public Relations & Image
South Lakeland District Council,http://opendatacommunities.org/id/district-council/south-lakeland,31/05/2023,Case Management Regulatory,Central Services,http://opendatacommunities.org/def/concept/finance/sercop/objective/102,Macdonald & Company Freelance Ltd,3882135,04/04/2023,189049,1700.5,0,Contract Worker,261400,HR Temporary & Agency Staff
South Lakeland District Council,http://opendatacommunities.org/id/district-council/south-lakeland,31/05/2023,Case Management People,Culture and Related Serv,http://opendatacommunities.org/def/concept/finance/sercop/objective/104,STEELWAY FENSECURE LTD,3872973,04/04/2023,189050,1519.38,0,Supply 2 x self closing premier gates.,101200,Building Construction Materials- Fencing
South Lakeland District Council,http://opendatacommunities.org/id/district-council/south-lakeland,31/05/2023,Case Management People,Cultural Environmental Regulatory & Planning Services,http://opendatacommunities.org/def/concept/finance/sercop/objective/104,STEELWAY FENSECURE LTD,3872973,04/04/2023,189051,4370.56,0,6 x 1.2m high Premier Safe Sprung Self,101200,Building Construction Materials- Fencing
South Lakeland District Council,http://opendatacommunities.org/id/district-council/south-lakeland,31/05/2023,Delivery Commercial Services,Central Services,http://opendatacommunities.org/def/concept/finance/sercop/objective/102,Kinto Uk Limited,837940,04/04/2023,189052,501.77,0,Hire 2 x vans maintenance 2022-23,381000,Vehicle Mgt Commercial
South Lakeland District Council,http://opendatacommunities.org/id/district-council/south-lakeland,31/05/2023,Delivery Commercial Services,Central Services,http://opendatacommunities.org/def/concept/finance/sercop/objective/102,Kinto Uk Limited,837940,04/04/2023,189053,501.77,0,Hire 2 x vans maintenance 2022-23,381000,Vehicle Mgt Commercial
South Lakeland District Council,http://opendatacommunities.org/id/district-council/south-lakeland,31/05/2023,Support Services,Central Services,http://opendatacommunities.org/def/concept/finance/sercop/objective/102,Geldards LLP,,18/04/2023,189110,618,0,EV charge points,280000,Legal Services
South Lakeland District Council,http://opendatacommunities.org/id/district-council/south-lakeland,31/05/2023,Support Services,Cultural Environmental Regulatory & Planning Services,http://opendatacommunities.org/def/concept/finance/sercop/objective/104,The Landscape Partnership Ltd,,12/04/2023,189111,768.5,0,Landscape Partnership Fees for HRA,152200,Consultancy Technical & Feasibility
South Lakeland District Council,http://opendatacommunities.org/id/district-council/south-lakeland,31/05/2023,Support Services,Central Services,http://opendatacommunities.org/def/concept/finance/sercop/objective/102,The Oyster Partnership,5020374,12/04/2023,189112,1500,0,13wks @1500 upto end of March 2023,261300,HR Recruitment & Assessment
South Lakeland District Council,http://opendatacommunities.org/id/district-council/south-lakeland,31/05/2023,Case Management Account Mgmt,Highways & Transport Services,http://opendatacommunities.org/def/concept/finance/sercop/objective/107,BEMROSE BOOTH PARAGON LTD,4891375,25/04/2023,189113,379.98,0,"4 packs, or 1000 GREEN permits for",191600,Facilities Printing
South Lakeland District Council,http://opendatacommunities.org/id/district-council/south-lakeland,31/05/2023,ICT Group,Central Services,http://opendatacommunities.org/def/concept/finance/sercop/objective/102,EDEN DISTRICT COUNCIL,,12/04/2023,189114,22500,0,GIS annual cost covers 1/8/21 to 31/7/22,908000,Public Bodies Council support services
South Lakeland District Council,http://opendatacommunities.org/id/district-council/south-lakeland,31/05/2023,ICT Group,Central Services,http://opendatacommunities.org/def/concept/finance/sercop/objective/102,EDEN DISTRICT COUNCIL,,12/04/2023,189115,2559.73,0,Image hardening,908000,Public Bodies Council support services
South Lakeland District Council,http://opendatacommunities.org/id/district-council/south-lakeland,31/05/2023,Delivery Commercial Services,Culture and Related Serv,http://opendatacommunities.org/def/concept/finance/sercop/objective/104,Bloom Procurement Services Ltd,,12/04/2023,189116,21368.42,0,Grange Lido - R.G Parkins PD Role,151900,Consultancy Management
South Lakeland District Council,http://opendatacommunities.org/id/district-council/south-lakeland,31/05/2023,Business Support Community Services,Cultural Environmental Regulatory & Planning Services,http://opendatacommunities.org/def/concept/finance/sercop/objective/104,Initial,1298292,12/04/2023,189117,28,0,Clinical waste collections 2022/23,131011,Cleaning & Janitorial Cleaning Materials
South Lakeland District Council,http://opendatacommunities.org/id/district-council/south-lakeland,31/05/2023,Case Management Account Mgmt,Housing Services,http://opendatacommunities.org/def/concept/finance/sercop/objective/108,Ashberry Recruitment,7202591,25/04/2023,189119,211.4,0,Agency Staff at TVF,261300,HR Recruitment & Assessment
South Lakeland District Council,http://opendatacommunities.org/id/district-council/south-lakeland,31/05/2023,Case Management Account Mgmt,Central Services,http://opendatacommunities.org/def/concept/finance/sercop/objective/102,ADECCO UK LIMITED,593232,12/04/2023,189120,697.88,0,Temporary staff to support in Case,261400,HR Temporary & Agency Staff
South Lakeland District Council,http://opendatacommunities.org/id/district-council/south-lakeland,31/05/2023,Case Management Account Mgmt,Central Services,http://opendatacommunities.org/def/concept/finance/sercop/objective/102,ADECCO UK LIMITED,593232,18/04/2023,189121,697.88,0,Temporary staff to support in Case,261400,HR Temporary & Agency Staff
South Lakeland District Council,http://opendatacommunities.org/id/district-council/south-lakeland,31/05/2023,Case Management People,Central Services,http://opendatacommunities.org/def/concept/finance/sercop/objective/102,ADECCO UK LIMITED,593232,12/04/2023,189122,814,0,Agency contract to allow DEF work to be,261400,HR Temporary & Agency Staff
South Lakeland District Council,http://opendatacommunities.org/id/district-council/south-lakeland,31/05/2023,Westmorland Centre Parking Office,Highways & Transport Services,http://opendatacommunities.org/def/concept/finance/sercop/objective/107,ADECCO UK LIMITED,593232,12/04/2023,189123,162.38,0,Agency staff working cash collecting,261400,HR Temporary & Agency Staff
South Lakeland District Council,http://opendatacommunities.org/id/district-council/south-lakeland,31/05/2023,Delivery Commercial Services,Central Services,http://opendatacommunities.org/def/concept/finance/sercop/objective/102,THE SIGN MAN,5748839,12/04/2023,189124,2895,0,Supply & Install new Council Logo as,102400,Building Signage
South Lakeland District Council,http://opendatacommunities.org/id/district-council/south-lakeland,31/05/2023,Delivery Commercial Services,Central Services,http://opendatacommunities.org/def/concept/finance/sercop/objective/102,J S Cleaning Services,,12/04/2023,189125,805,0,Cleaning services at North Lonsdael Road,131010,Cleaning & Janitorial Cleaning Materials
South Lakeland District Council,http://opendatacommunities.org/id/district-council/south-lakeland,31/05/2023,Case Management Account Mgmt,Cultural Environmental Regulatory & Planning Services,http://opendatacommunities.org/def/concept/finance/sercop/objective/104,J S Cleaning Services,,12/04/2023,189126,35,0,Cleaning of the chapel 2022-23,131010,Cleaning & Janitorial Cleaning Materials
South Lakeland District Council,http://opendatacommunities.org/id/district-council/south-lakeland,31/05/2023,Case Management,Cultural Environmental Regulatory & Planning Services,http://opendatacommunities.org/def/concept/finance/sercop/objective/104,NEWSQUEST MEDIA GROUP LTD,3102566,12/04/2023,189127,352.82,0,Newspaper Adverts for Planning,191000,Facilities Advertising
South Lakeland District Council,http://opendatacommunities.org/id/district-council/south-lakeland,31/05/2023,Business Support Community Services,Cultural Environmental Regulatory & Planning Services,http://opendatacommunities.org/def/concept/finance/sercop/objective/104,EK MOTOR FACTORS LTD,838524,12/04/2023,189128,5.95,0,Parts,381400,Vehicle Mgt Maintenance
South Lakeland District Council,http://opendatacommunities.org/id/district-council/south-lakeland,31/05/2023,Human Resources,Central Services,http://opendatacommunities.org/def/concept/finance/sercop/objective/102,CUMBRIA COUNTY COUNCIL,,12/04/2023,189129,54,0,DBS certificate,908000,Public Bodies Council support services
South Lakeland District Council,http://opendatacommunities.org/id/district-council/south-lakeland,31/05/2023,Assets and Commercial Services,External Trading Accounts,,Thomas Graham & Sons Ltd (Cleaning Supp),,12/04/2023,189130,124.95,0,99PH010 C-Fold hand towels,131010,Cleaning & Janitorial Cleaning Materials
South Lakeland District Council,http://opendatacommunities.org/id/district-council/south-lakeland,31/05/2023,Assets and Commercial Services,Central Services,http://opendatacommunities.org/def/concept/finance/sercop/objective/102,THOMAS GRAHAM & SONS LTD,656879,12/04/2023,189131,68.32,0,99SR092 clear plastic recycling sacs,101400,Building General Materials
South Lakeland District Council,http://opendatacommunities.org/id/district-council/south-lakeland,31/05/2023,Lake Wardens,Central Services,http://opendatacommunities.org/def/concept/finance/sercop/objective/102,THOMAS GRAHAM & SONS LTD,656879,12/04/2023,189132,89.56,0,supply 2 0ff part no. 99PW104 as per,101400,Building General Materials
South Lakeland District Council,http://opendatacommunities.org/id/district-council/south-lakeland,31/05/2023,Lake Wardens,Cultural Environmental Regulatory & Planning Services,http://opendatacommunities.org/def/concept/finance/sercop/objective/104,THOMAS GRAHAM & SONS LTD,656879,12/04/2023,189132,88.16,0,supply 2 0ff part no. 99PW104 as per,101400,Building General Materials
South Lakeland District Council,http://opendatacommunities.org/id/district-council/south-lakeland,31/05/2023,Westmorland Centre Parking Office,Highways & Transport Services,http://opendatacommunities.org/def/concept/finance/sercop/objective/107,Thomas Graham & Sons Ltd (Cleaning Supp),,12/04/2023,189133,132.18,0,99PH012 AE116 Jangro Green C-Fold 1 Ply,131010,Cleaning & Janitorial Cleaning Materials
South Lakeland District Council,http://opendatacommunities.org/id/district-council/south-lakeland,31/05/2023,Case Management,Housing Services,http://opendatacommunities.org/def/concept/finance/sercop/objective/108,Thomas Graham & Sons Ltd (Cleaning Supp),,12/04/2023,189134,255.95,0,Cleaning Supplies,131010,Cleaning & Janitorial Cleaning Materials
South Lakeland District Council,http://opendatacommunities.org/id/district-council/south-lakeland,31/05/2023,Kendal Town Hall,Cultural Environmental Regulatory & Planning Services,http://opendatacommunities.org/def/concept/finance/sercop/objective/104,THOMAS GRAHAM & SONS LTD,656879,12/04/2023,189135,112.18,0,2 packs of Tork Advanced Centre Feed,101400,Building General Materials
South Lakeland District Council,http://opendatacommunities.org/id/district-council/south-lakeland,31/05/2023,Assets and Commercial Services,Central Services,http://opendatacommunities.org/def/concept/finance/sercop/objective/102,THOMAS GRAHAM & SONS LTD,656879,12/04/2023,189136,154.94,0,99CF111 X5L Jangro lemon floor,101400,Building General Materials
South Lakeland District Council,http://opendatacommunities.org/id/district-council/south-lakeland,31/05/2023,Assets and Commercial Services,Central Services,http://opendatacommunities.org/def/concept/finance/sercop/objective/102,THOMAS GRAHAM & SONS LTD,656879,12/04/2023,189137,-21.92,0,99PR022 Jangro centre feed white,101400,Building General Materials
South Lakeland District Council,http://opendatacommunities.org/id/district-council/south-lakeland,31/05/2023,Lake Wardens,Cultural Environmental Regulatory & Planning Services,http://opendatacommunities.org/def/concept/finance/sercop/objective/104,THOMAS GRAHAM & SONS LTD,656879,18/04/2023,189138,47.75,0,40 off part no 522M12 Nyloc Nut as per,101400,Building General Materials
South Lakeland District Council,http://opendatacommunities.org/id/district-council/south-lakeland,31/05/2023,Lake Wardens,Cultural Environmental Regulatory & Planning Services,http://opendatacommunities.org/def/concept/finance/sercop/objective/104,THOMAS GRAHAM & SONS LTD,656879,18/04/2023,189139,73.88,0,40 off part no 522M12 Nyloc Nut as per,101400,Building General Materials
South Lakeland District Council,http://opendatacommunities.org/id/district-council/south-lakeland,31/05/2023,Business Support Community Services,Cultural Environmental Regulatory & Planning Services,http://opendatacommunities.org/def/concept/finance/sercop/objective/104,INNOVATIVE SAFETY SYSTEMS LTD,6875015,18/04/2023,189140,573,0,Parts,192200,Facilities Security
South Lakeland District Council,http://opendatacommunities.org/id/district-council/south-lakeland,31/05/2023,Assets and Commercial Services,Central Services,http://opendatacommunities.org/def/concept/finance/sercop/objective/102,Citation Limited T/A Southalls,5751804,18/04/2023,189141,899,0,Fire  Risk assessment for Ulverston,202100,Financial Services Subscriptions
South Lakeland District Council,http://opendatacommunities.org/id/district-council/south-lakeland,31/05/2023,Delivery Commercial Services,Central Services,http://opendatacommunities.org/def/concept/finance/sercop/objective/102,SoloProtect Limited,,12/04/2023,189142,260,0,Service charge for 2 units -,192212,Facilities Security Equipment
South Lakeland District Council,http://opendatacommunities.org/id/district-council/south-lakeland,31/05/2023,Delivery Commercial Services,Cultural Environmental Regulatory & Planning Services,http://opendatacommunities.org/def/concept/finance/sercop/objective/104,SoloProtect Limited,,12/04/2023,189143,150,0,Solo Protect 7 x Classic devices - KTH,192212,Facilities Security Equipment
South Lakeland District Council,http://opendatacommunities.org/id/district-council/south-lakeland,31/05/2023,Case Management Regulatory,Central Services,http://opendatacommunities.org/def/concept/finance/sercop/objective/102,SoloProtect Limited,,12/04/2023,189144,84,0,4 x SoloProtect ID Devices for 12 months,192212,Facilities Security Equipment
South Lakeland District Council,http://opendatacommunities.org/id/district-council/south-lakeland,31/05/2023,Delivery Commercial Services,Central Services,http://opendatacommunities.org/def/concept/finance/sercop/objective/102,SoloProtect Limited,,12/04/2023,189145,16.45,0,Service charge 2022-23 x 1 unit - spare,192212,Facilities Security Equipment
South Lakeland District Council,http://opendatacommunities.org/id/district-council/south-lakeland,31/05/2023,Case Management People,Housing Services,http://opendatacommunities.org/def/concept/finance/sercop/objective/108,SoloProtect Limited,,12/04/2023,189146,20,0,Solo Protect - RSI,192212,Facilities Security Equipment
South Lakeland District Council,http://opendatacommunities.org/id/district-council/south-lakeland,31/05/2023,Delivery Commercial Services,Central Services,http://opendatacommunities.org/def/concept/finance/sercop/objective/102,SoloProtect Limited,,12/04/2023,189147,49.35,0,Service charge for 3 units -,192212,Facilities Security Equipment
South Lakeland District Council,http://opendatacommunities.org/id/district-council/south-lakeland,31/05/2023,Case Management People,Housing Services,http://opendatacommunities.org/def/concept/finance/sercop/objective/108,SoloProtect Limited,,12/04/2023,189148,30,0,Soloprotect device ,192212,Facilities Security Equipment
South Lakeland District Council,http://opendatacommunities.org/id/district-council/south-lakeland,31/05/2023,Delivery Commercial Services,Central Services,http://opendatacommunities.org/def/concept/finance/sercop/objective/102,SoloProtect Limited,,12/04/2023,189149,31.9,0,Service charge for 2 units 2022-23 -,192212,Facilities Security Equipment
South Lakeland District Council,http://opendatacommunities.org/id/district-council/south-lakeland,31/05/2023,Delivery Commercial Services,Housing Services,http://opendatacommunities.org/def/concept/finance/sercop/objective/108,SoloProtect Limited,,12/04/2023,189150,65.8,0,Town View Fields - 4 units (2022-23),192212,Facilities Security Equipment
South Lakeland District Council,http://opendatacommunities.org/id/district-council/south-lakeland,31/05/2023,Case Management Account Mgmt,Highways & Transport Services,http://opendatacommunities.org/def/concept/finance/sercop/objective/107,ALLSTAR BUSINESS SOLUTIONS LTD (NCR),2631112,01/04/2023,189152,491.84,0,Fuel for CEO vans 1 April 2022 to 31,381600,Vehicle Mgt Leasing
South Lakeland District Council,http://opendatacommunities.org/id/district-council/south-lakeland,31/05/2023,Case Management Account Mgmt,Highways & Transport Services,http://opendatacommunities.org/def/concept/finance/sercop/objective/107,ALLSTAR BUSINESS SOLUTIONS LTD (NCR),2631112,01/04/2023,189152,13.72,0,Fuel for CEO vans 1 April 2022 to 31,381600,Vehicle Mgt Leasing
South Lakeland District Council,http://opendatacommunities.org/id/district-council/south-lakeland,31/05/2023,Case Management Account Mgmt,Cultural Environmental Regulatory & Planning Services,http://opendatacommunities.org/def/concept/finance/sercop/objective/104,ALLSTAR BUSINESS SOLUTIONS LTD (NCR),2631112,01/04/2023,189152,100,0,Fuel for CEO vans 1 April 2022 to 31,381600,Vehicle Mgt Leasing
South Lakeland District Council,http://opendatacommunities.org/id/district-council/south-lakeland,31/05/2023,Case Management Regulatory,Central Services,http://opendatacommunities.org/def/concept/finance/sercop/objective/102,ALLSTAR BUSINESS SOLUTIONS LTD (NCR),2631112,01/04/2023,189153,63.96,0,Fuel Card -,381600,Vehicle Mgt Leasing
South Lakeland District Council,http://opendatacommunities.org/id/district-council/south-lakeland,31/05/2023,Business Support Community Services,Cultural Environmental Regulatory & Planning Services,http://opendatacommunities.org/def/concept/finance/sercop/objective/104,ALLSTAR BUSINESS SOLUTIONS LTD (NCR),2631112,01/04/2023,189154,6000,0,Fuel to 31/3 (est),381600,Vehicle Mgt Leasing
South Lakeland District Council,http://opendatacommunities.org/id/district-council/south-lakeland,31/05/2023,Business Support Community Services,Cultural Environmental Regulatory & Planning Services,http://opendatacommunities.org/def/concept/finance/sercop/objective/104,ALLSTAR BUSINESS SOLUTIONS LTD (NCR),2631112,01/04/2023,189154,500,0,Fuel to 31/3 (est),381600,Vehicle Mgt Leasing
South Lakeland District Council,http://opendatacommunities.org/id/district-council/south-lakeland,31/05/2023,Business Support Community Services,Cultural Environmental Regulatory & Planning Services,http://opendatacommunities.org/def/concept/finance/sercop/objective/104,ALLSTAR BUSINESS SOLUTIONS LTD (NCR),2631112,01/04/2023,189154,21483.42,0,Fuel to 31/3 (est),381600,Vehicle Mgt Leasing
South Lakeland District Council,http://opendatacommunities.org/id/district-council/south-lakeland,31/05/2023,Business Support Community Services,Cultural Environmental Regulatory & Planning Services,http://opendatacommunities.org/def/concept/finance/sercop/objective/104,ALLSTAR BUSINESS SOLUTIONS LTD (NCR),2631112,01/04/2023,189154,55,0,Fuel to 31/3 (est),381600,Vehicle Mgt Leasing
South Lakeland District Council,http://opendatacommunities.org/id/district-council/south-lakeland,31/05/2023,Case Management Account Mgmt,Highways & Transport Services,http://opendatacommunities.org/def/concept/finance/sercop/objective/107,Orbility,,18/04/2023,189155,665,0,200 blank mifare cards,111200,Catering Food & Beverages
South Lakeland District Council,http://opendatacommunities.org/id/district-council/south-lakeland,31/05/2023,Case Management Account Mgmt,Central Services,http://opendatacommunities.org/def/concept/finance/sercop/objective/102,STANDING STONE DRAWING OFFICE SUPPLIES,5128817,12/04/2023,189156,294.2,0,841mm paper rolls x6,341100,Stationery Sundries
South Lakeland District Council,http://opendatacommunities.org/id/district-council/south-lakeland,31/05/2023,Case Management Regulatory,Central Services,http://opendatacommunities.org/def/concept/finance/sercop/objective/102,The Oyster Partnership,5020374,12/04/2023,189157,1200,0,Agency Environmental Health Officer,261300,HR Recruitment & Assessment
South Lakeland District Council,http://opendatacommunities.org/id/district-council/south-lakeland,31/05/2023,Business Support Community Services,Central Services,http://opendatacommunities.org/def/concept/finance/sercop/objective/102,Dawsongroup Truck & Trailer Ltd,3080279,12/04/2023,189158,16490.2,0,Lease of 2 x HGV sweepers from date of,381200,Vehicle Mgt Heavy Constr Equip Leasing
South Lakeland District Council,http://opendatacommunities.org/id/district-council/south-lakeland,31/05/2023,Business Support Community Services,Cultural Environmental Regulatory & Planning Services,http://opendatacommunities.org/def/concept/finance/sercop/objective/104,S J Bargh,532272,12/04/2023,189159,181.2,0,MOTs 2022/23,381400,Vehicle Mgt Maintenance
South Lakeland District Council,http://opendatacommunities.org/id/district-council/south-lakeland,31/05/2023,Business Support Community Services,Central Services,http://opendatacommunities.org/def/concept/finance/sercop/objective/102,Dawsongroup Truck & Trailer Ltd,3080279,12/04/2023,189160,3367.56,0,Lease of 2 x HGV sweepers from date of,381200,Vehicle Mgt Heavy Constr Equip Leasing
South Lakeland District Council,http://opendatacommunities.org/id/district-council/south-lakeland,31/05/2023,Business Support Community Services,Central Services,http://opendatacommunities.org/def/concept/finance/sercop/objective/102,Dawsongroup Truck & Trailer Ltd,3080279,12/04/2023,189161,3367.56,0,Lease of 2 x HGV sweepers from date of,381200,Vehicle Mgt Heavy Constr Equip Leasing
South Lakeland District Council,http://opendatacommunities.org/id/district-council/south-lakeland,31/05/2023,Business Support Community Services,Central Services,http://opendatacommunities.org/def/concept/finance/sercop/objective/102,ARCO LIMITED,133804,18/04/2023,189162,190,0,W & F PPE,141100,Clothing Protective
South Lakeland District Council,http://opendatacommunities.org/id/district-council/south-lakeland,31/05/2023,Case Management Account Mgmt,Central Services,http://opendatacommunities.org/def/concept/finance/sercop/objective/102,Konica Minolta Bus Solutions (UK) Ltd,,12/04/2023,189163,7025.43,0,MFD and Print Room Lease Charges,192000,Facilities Reprographics
South Lakeland District Council,http://opendatacommunities.org/id/district-council/south-lakeland,31/05/2023,Case Management,Cultural Environmental Regulatory & Planning Services,http://opendatacommunities.org/def/concept/finance/sercop/objective/104,Tetra Tech Group Limited.,4807864,12/04/2023,189164,14000,0,Commissioning invoice - on completion,182012,Environment Waste Management Recycling
South Lakeland District Council,http://opendatacommunities.org/id/district-council/south-lakeland,31/05/2023,Case Management Regulatory,Central Services,http://opendatacommunities.org/def/concept/finance/sercop/objective/102,Macdonald & Company Freelance Ltd,3882135,18/04/2023,189165,1268.25,0,Contract Worker,261400,HR Temporary & Agency Staff
South Lakeland District Council,http://opendatacommunities.org/id/district-council/south-lakeland,31/05/2023,Case Management,Central Services,http://opendatacommunities.org/def/concept/finance/sercop/objective/102,The Oyster Partnership,5020374,18/04/2023,189166,1544.22,0,Agency Staff,261300,HR Recruitment & Assessment
South Lakeland District Council,http://opendatacommunities.org/id/district-council/south-lakeland,31/05/2023,Finance,Central Services,http://opendatacommunities.org/def/concept/finance/sercop/objective/102,Bottomline Technologies Ltd (NCR),3693514,01/04/2023,189167,783.32,0,PTX BACS subscription service and,271440,ICT Software
South Lakeland District Council,http://opendatacommunities.org/id/district-council/south-lakeland,31/05/2023,Human Resources,Central Services,http://opendatacommunities.org/def/concept/finance/sercop/objective/102,PILAT EUROPE LTD,4207292,12/04/2023,189169,1995,0,Upgrade JE Sortware System - Year 1,271600,ICT Software Customised & Bespoke
South Lakeland District Council,http://opendatacommunities.org/id/district-council/south-lakeland,31/05/2023,Support Services,Central Services,http://opendatacommunities.org/def/concept/finance/sercop/objective/102,CFH Docmail Ltd,1716891,12/04/2023,189170,158.01,0,"Ad hoc printing throughout the year,",300000,Mail Services
South Lakeland District Council,http://opendatacommunities.org/id/district-council/south-lakeland,31/05/2023,Support Services,Central Services,http://opendatacommunities.org/def/concept/finance/sercop/objective/102,CFH Docmail Ltd,1716891,12/04/2023,189171,66.57,0,"Ad hoc printing throughout the year,",300000,Mail Services
South Lakeland District Council,http://opendatacommunities.org/id/district-council/south-lakeland,31/05/2023,Case Management Regulatory,Central Services,http://opendatacommunities.org/def/concept/finance/sercop/objective/102,The Oyster Partnership,5020374,18/04/2023,189172,1332,0,Agency Officer - Licensing wef 4 April,261300,HR Recruitment & Assessment
South Lakeland District Council,http://opendatacommunities.org/id/district-council/south-lakeland,31/05/2023,Case Management Regulatory,Central Services,http://opendatacommunities.org/def/concept/finance/sercop/objective/102,G2 Recruitment Solutions,,25/04/2023,189173,1480,0,Agency Staff,261413,HR- Temporary Staff- Professional
South Lakeland District Council,http://opendatacommunities.org/id/district-council/south-lakeland,31/05/2023,Business Support Community Services,Cultural Environmental Regulatory & Planning Services,http://opendatacommunities.org/def/concept/finance/sercop/objective/104,Masterstaff Limited,2777593,18/04/2023,189174,647.13,0,Agency staff,261300,HR Recruitment & Assessment
South Lakeland District Council,http://opendatacommunities.org/id/district-council/south-lakeland,31/05/2023,Case Management People,Central Services,http://opendatacommunities.org/def/concept/finance/sercop/objective/102,ADECCO UK LIMITED,593232,12/04/2023,189175,814,0,Agency contract to allow DEF work to be,261400,HR Temporary & Agency Staff
South Lakeland District Council,http://opendatacommunities.org/id/district-council/south-lakeland,31/05/2023,Westmorland Centre Parking Office,Highways & Transport Services,http://opendatacommunities.org/def/concept/finance/sercop/objective/107,ADECCO UK LIMITED,593232,12/04/2023,189176,324.75,0,Agency staff working cash collecting,261400,HR Temporary & Agency Staff
South Lakeland District Council,http://opendatacommunities.org/id/district-council/south-lakeland,31/05/2023,Case Management Regulatory,Central Services,http://opendatacommunities.org/def/concept/finance/sercop/objective/102,The Oyster Partnership,5020374,12/04/2023,189177,1200,0,Agency Environmental Health Officer,261300,HR Recruitment & Assessment
South Lakeland District Council,http://opendatacommunities.org/id/district-council/south-lakeland,31/05/2023,Case Management Regulatory,Central Services,http://opendatacommunities.org/def/concept/finance/sercop/objective/102,The Oyster Partnership,5020374,12/04/2023,189178,1200,0,Agency Environmental Health Officer,261300,HR Recruitment & Assessment
South Lakeland District Council,http://opendatacommunities.org/id/district-council/south-lakeland,31/05/2023,Case Management Regulatory,Central Services,http://opendatacommunities.org/def/concept/finance/sercop/objective/102,The Oyster Partnership,5020374,12/04/2023,189179,672,0,Agency Officer - Licensing,261300,HR Recruitment & Assessment
South Lakeland District Council,http://opendatacommunities.org/id/district-council/south-lakeland,31/05/2023,Support Services,Central Services,http://opendatacommunities.org/def/concept/finance/sercop/objective/102,Irwin Mitchell LLP,,18/04/2023,189323,1000,0,Urgent Planning Query from Barrow re 5G,280000,Legal Services
South Lakeland District Council,http://opendatacommunities.org/id/district-council/south-lakeland,31/05/2023,Support Services,Housing Services,http://opendatacommunities.org/def/concept/finance/sercop/objective/108,BEVAN BRITTAN,OC309219,18/04/2023,189324,2317,0,Castle and Coast Affordable Housing,280000,Legal Services
South Lakeland District Council,http://opendatacommunities.org/id/district-council/south-lakeland,31/05/2023,Case Management Regulatory,Central Services,http://opendatacommunities.org/def/concept/finance/sercop/objective/102,LAKE DISTRICT NATIONAL PARK AUTHORITY,,25/04/2023,189325,2157.5,0,LAND CHARGE SEARCH ENQUIRIES LDNP,201700,Financial Services Grants
South Lakeland District Council,http://opendatacommunities.org/id/district-council/south-lakeland,31/05/2023,Customer Services,Cultural Environmental Regulatory & Planning Services,http://opendatacommunities.org/def/concept/finance/sercop/objective/104,RIGHT 2 WORK,,18/04/2023,189326,4530.3,0,Bulky Waste scheme 2022/23,321010,Social Care Adult Advice & Counselling
South Lakeland District Council,http://opendatacommunities.org/id/district-council/south-lakeland,31/05/2023,Support Services,Central Services,http://opendatacommunities.org/def/concept/finance/sercop/objective/102,Idox Software Ltd,2933889,18/04/2023,189328,185.8,0,Quote ref 22.53809,271600,ICT Software Customised & Bespoke
South Lakeland District Council,http://opendatacommunities.org/id/district-council/south-lakeland,31/05/2023,Case Management Account Mgmt,Central Services,http://opendatacommunities.org/def/concept/finance/sercop/objective/102,ADECCO UK LIMITED,593232,18/04/2023,189336,572.01,0,Temporary staff to support in Case,261400,HR Temporary & Agency Staff
South Lakeland District Council,http://opendatacommunities.org/id/district-council/south-lakeland,31/05/2023,Case Management,Central Services,http://opendatacommunities.org/def/concept/finance/sercop/objective/102,PITNEY BOWES LTD,182037,18/04/2023,189338,598.5,0,Stock envelopes 2022-23,301200,Mail Services� Postage
South Lakeland District Council,http://opendatacommunities.org/id/district-council/south-lakeland,31/05/2023,Case Management Regulatory,Central Services,http://opendatacommunities.org/def/concept/finance/sercop/objective/102,The Oyster Partnership,5020374,25/04/2023,189358,672,0,Agency Officer - Licensing,261300,HR Recruitment & Assessment
South Lakeland District Council,http://opendatacommunities.org/id/district-council/south-lakeland,31/05/2023,Finance,Central Services,http://opendatacommunities.org/def/concept/finance/sercop/objective/102,Bottomline Technologies Ltd (NCR),3693514,01/04/2023,189363,-58.32,0,PTX BACS subscription service and,271440,ICT Software
South Lakeland District Council,http://opendatacommunities.org/id/district-council/south-lakeland,31/05/2023,Case Management People,Housing Services,http://opendatacommunities.org/def/concept/finance/sercop/objective/108,DENT PARISH COUNCIL,,25/04/2023,189387,175,0,Capacity Building Grant,908000,Public Bodies Council support services
South Lakeland District Council,http://opendatacommunities.org/id/district-council/south-lakeland,31/05/2023,Case Management People,Housing Services,http://opendatacommunities.org/def/concept/finance/sercop/objective/108,DENT PARISH COUNCIL,,25/04/2023,189388,648.5,0,Capacity Building Grant,908000,Public Bodies Council support services
South Lakeland District Council,http://opendatacommunities.org/id/district-council/south-lakeland,31/05/2023,Case Management People,Central Services,http://opendatacommunities.org/def/concept/finance/sercop/objective/102,HBINFO LTD,5779046,25/04/2023,189389,999,0,Description W&F hbinfo annual,201400,Financial Services C Tax & Bus Rates
South Lakeland District Council,http://opendatacommunities.org/id/district-council/south-lakeland,31/05/2023,Support Services,Central Services,http://opendatacommunities.org/def/concept/finance/sercop/objective/102,WEIGHTMANS LLP,OC326117,25/04/2023,189390,750,0,?Authorisations - Building Control,281300,Legal Services Legal Opinion
South Lakeland District Council,http://opendatacommunities.org/id/district-council/south-lakeland,31/05/2023,Finance,Central Services,http://opendatacommunities.org/def/concept/finance/sercop/objective/102,CIPFA,2376684,25/04/2023,189391,19500,0,CIPFA consultancy support for,261500,HR Training & Conferences
South Lakeland District Council,http://opendatacommunities.org/id/district-council/south-lakeland,31/05/2023,Case Management Account Mgmt,Central Services,http://opendatacommunities.org/def/concept/finance/sercop/objective/102,ROYAL MAIL GROUP PLC,,25/04/2023,189392,1084.07,0,2022-23 Royal Mail Postal Charges a/c,301200,Mail Services� Postage
South Lakeland District Council,http://opendatacommunities.org/id/district-council/south-lakeland,31/05/2023,Case Management Account Mgmt,Central Services,http://opendatacommunities.org/def/concept/finance/sercop/objective/102,ROYAL MAIL GROUP PLC,,25/04/2023,189393,1602.25,0,2022-23 Royal Mail Postal Charges a/c,301200,Mail Services� Postage
South Lakeland District Council,http://opendatacommunities.org/id/district-council/south-lakeland,31/05/2023,Case Management,Central Services,http://opendatacommunities.org/def/concept/finance/sercop/objective/102,TAMESIDE METROPOLITAN BOROUGH,,25/04/2023,189395,165.8,0,Q3 & Q4,202100,Financial Services Subscriptions
South Lakeland District Council,http://opendatacommunities.org/id/district-council/south-lakeland,31/05/2023,Case Management People,Central Services,http://opendatacommunities.org/def/concept/finance/sercop/objective/102,G2 Recruitment Solutions,,25/04/2023,189396,833.25,0,Payment for Housing Options Advisor,261413,HR- Temporary Staff- Professional
South Lakeland District Council,http://opendatacommunities.org/id/district-council/south-lakeland,31/05/2023,Case Management Account Mgmt,Central Services,http://opendatacommunities.org/def/concept/finance/sercop/objective/102,INST OF CEMETERY & CREMATORIUM MANGMT,,25/04/2023,189397,850,0,Training for 6-8 officers on,202100,Financial Services Subscriptions
South Lakeland District Council,http://opendatacommunities.org/id/district-council/south-lakeland,31/05/2023,Case Management Account Mgmt,Central Services,http://opendatacommunities.org/def/concept/finance/sercop/objective/102,ALLPAY.NET LTD (NCR),6871069,01/04/2023,189398,134.53,0,2022-23 Internet payment/bank charges,209999,Financial Services Not Elsewhere Classif
South Lakeland District Council,http://opendatacommunities.org/id/district-council/south-lakeland,31/05/2023,Case Management Account Mgmt,Central Services,http://opendatacommunities.org/def/concept/finance/sercop/objective/102,ALLPAY.NET LTD (NCR),6871069,01/04/2023,189399,13.77,0,2022-23 Internet payment/bank charges,209999,Financial Services Not Elsewhere Classif
South Lakeland District Council,http://opendatacommunities.org/id/district-council/south-lakeland,31/05/2023,Case Management Account Mgmt,Central Services,http://opendatacommunities.org/def/concept/finance/sercop/objective/102,ALLPAY.NET LTD (NCR),6871069,01/04/2023,189400,12.7,0,2022-23 Internet payment/bank charges,209999,Financial Services Not Elsewhere Classif
South Lakeland District Council,http://opendatacommunities.org/id/district-council/south-lakeland,31/05/2023,Case Management Account Mgmt,Central Services,http://opendatacommunities.org/def/concept/finance/sercop/objective/102,ALLPAY.NET LTD (NCR),6871069,01/04/2023,189401,10.6,0,2022-23 Internet payment/bank charges,209999,Financial Services Not Elsewhere Classif
South Lakeland District Council,http://opendatacommunities.org/id/district-council/south-lakeland,31/05/2023,Case Management Account Mgmt,Central Services,http://opendatacommunities.org/def/concept/finance/sercop/objective/102,ALLPAY.NET LTD (NCR),6871069,01/04/2023,189402,12.71,0,2022-23 Internet payment/bank charges,209999,Financial Services Not Elsewhere Classif
South Lakeland District Council,http://opendatacommunities.org/id/district-council/south-lakeland,31/05/2023,Case Management Account Mgmt,Central Services,http://opendatacommunities.org/def/concept/finance/sercop/objective/102,ALLPAY.NET LTD (NCR),6871069,01/04/2023,189403,12.18,0,2022-23 Internet payment/bank charges,209999,Financial Services Not Elsewhere Classif
South Lakeland District Council,http://opendatacommunities.org/id/district-council/south-lakeland,31/05/2023,Case Management Account Mgmt,Central Services,http://opendatacommunities.org/def/concept/finance/sercop/objective/102,ALLPAY.NET LTD (NCR),6871069,01/04/2023,189404,318.22,0,2022-23 Internet payment/bank charges,209999,Financial Services Not Elsewhere Classif
South Lakeland District Council,http://opendatacommunities.org/id/district-council/south-lakeland,31/05/2023,Case Management Account Mgmt,Central Services,http://opendatacommunities.org/def/concept/finance/sercop/objective/102,ALLPAY.NET LTD (NCR),6871069,01/04/2023,189405,89.06,0,2022-23 Internet payment/bank charges,209999,Financial Services Not Elsewhere Classif
South Lakeland District Council,http://opendatacommunities.org/id/district-council/south-lakeland,31/05/2023,Case Management Account Mgmt,Highways & Transport Services,http://opendatacommunities.org/def/concept/finance/sercop/objective/107,BEMROSE BOOTH PARAGON LTD,4891375,25/04/2023,189406,180,0,"4 packs, or 1000 GREEN permits for",191600,Facilities Printing
South Lakeland District Council,http://opendatacommunities.org/id/district-council/south-lakeland,31/05/2023,Case Management Account Mgmt,Highways & Transport Services,http://opendatacommunities.org/def/concept/finance/sercop/objective/107,BEMROSE BOOTH PARAGON LTD,4891375,25/04/2023,189407,350,0,"4 packs, or 1000 GREEN permits for",191600,Facilities Printing
South Lakeland District Council,http://opendatacommunities.org/id/district-council/south-lakeland,31/05/2023,Case Management Account Mgmt,Highways & Transport Services,http://opendatacommunities.org/def/concept/finance/sercop/objective/107,BEMROSE BOOTH PARAGON LTD,4891375,25/04/2023,189408,249.98,0,"4 packs, or 1000 GREEN permits for",191600,Facilities Printing
South Lakeland District Council,http://opendatacommunities.org/id/district-council/south-lakeland,31/05/2023,ICT Group,Central Services,http://opendatacommunities.org/def/concept/finance/sercop/objective/102,IT PROFESSIONAL SERVICES (ITPS),,25/04/2023,189411,215,0,1 Year Wildcard Certificate Renewal -,279999,ICT Not Elsewhere Classified
South Lakeland District Council,http://opendatacommunities.org/id/district-council/south-lakeland,31/05/2023,ICT Group,Central Services,http://opendatacommunities.org/def/concept/finance/sercop/objective/102,IT PROFESSIONAL SERVICES (ITPS),,25/04/2023,189412,100,0,1 Year SSL Certificate -,279999,ICT Not Elsewhere Classified
South Lakeland District Council,http://opendatacommunities.org/id/district-council/south-lakeland,31/05/2023,Lake Wardens,Cultural Environmental Regulatory & Planning Services,http://opendatacommunities.org/def/concept/finance/sercop/objective/104,MARINE WAREHOUSE LIMITED,5152483,25/04/2023,189414,679.45,0,Servicing of Lifejackets including,221000,Health & Safety� Products
South Lakeland District Council,http://opendatacommunities.org/id/district-council/south-lakeland,31/05/2023,Lake Wardens,Cultural Environmental Regulatory & Planning Services,http://opendatacommunities.org/def/concept/finance/sercop/objective/104,MARINE WAREHOUSE LIMITED,5152483,25/04/2023,189415,-79.15,0,Servicing of Lifejackets including,221000,Health & Safety� Products
South Lakeland District Council,http://opendatacommunities.org/id/district-council/south-lakeland,31/05/2023,Business Support Community Services,Cultural Environmental Regulatory & Planning Services,http://opendatacommunities.org/def/concept/finance/sercop/objective/104,NORTHERN FALLEN STOCK LTD,6709933,27/04/2023,189644,186.5,0,Fallen stock collection & disposal,181500,Environment Animal Services
South Lakeland District Council,http://opendatacommunities.org/id/district-council/south-lakeland,31/05/2023,Case Management Account Mgmt,Non-Service Payments,,Ulverston BID Company Ltd,9761005,27/04/2023,189663,999.35,0,Monies collected,201700,Financial Services Grants
